fUSD/lending_fUSD_20250506
["ID","MTS","AMOUNT","RATE_DAILY","PERIOD"]
[360058492,1746528649460,-65.9480186,0.00019997,2]
[360058493,1746528649571,-175.13294975,0.00019884,2]
[360058494,1746528649581,-450.0,0.00019884,2]
[360058495,1746528649592,-5.82159411,0.00019885,2]
[360058496,1746528649604,-994.17840589,0.00019885,2]
[360058497,1746528649614,-474.75873989,0.00019885,2]
[360058498,1746528649624,-493.48739341,0.00019885,2]
[360058499,1746528649634,-250.97555081,0.00019885,2]
[360058500,1746528649646,-199.02444919,0.00019885,2]
[360058501,1746528649655,-839.01326472,0.00019983,2]
[360058502,1746528649988,-202.13244848,0.00019983,2]
[360058503,1746528649998,-394.78852932,0.00019997,2]
[360058504,1746528650008,-450.0,0.00019997,2]
[360058505,1746528650017,-450.0,0.00019997,2]
[360058506,1746528650026,-450.0,0.00019997,2]
[360058507,1746528650036,-450.0,0.00019997,2]
[360058508,1746528650045,-450.0,0.00019997,2]
[360058509,1746528650054,-450.0,0.00019997,2]
[360058510,1746528650064,-450.0,0.00019997,2]
[360058511,1746528650073,-450.0,0.00019997,2]
[360058512,1746528650083,-544.97,0.00019997,2]
[360058513,1746528650093,-589.89968229,0.00019997,2]
[360058514,1746528650103,-1088.0,0.00019998,2]
[360058515,1746528650112,-215.495523,0.00019998,2]
[360058516,1746528650122,-450.0,0.00019998,2]
[360058517,1746528650132,-450.0,0.00019998,2]
[360058518,1746528650141,-450.0,0.00019998,2]
[360058519,1746528650151,-471.92808229,0.00019998,2]
[360058520,1746528650160,-450.0,0.00019998,2]
[360058521,1746528650169,-233.71298192,0.00019998,2]
[360058522,1746528650179,-450.0,0.00019998,2]
[360058523,1746528650188,-450.0,0.00019998,2]
[360058524,1746528650197,-417.66,0.00019998,2]
[360058525,1746528650206,-199.39905228,0.00019998,2]
[360058526,1746528650215,-450.0,0.00019998,2]
[360058527,1746528650225,-471.64604819,0.00019998,2]
[360058528,1746528650234,-450.0,0.00019998,2]
[360058529,1746528650244,-456.09214176,0.00019998,2]
[360058530,1746528650253,-489.13,0.00019998,2]
[360058531,1746528650263,-536.28918008,0.00019998,2]
[360058532,1746528650272,-450.0,0.00019998,2]
[360058533,1746528650314,-454.1614476,0.00019998,2]
[360058534,1746528650323,-458.42820587,0.00019998,2]
[360058535,1746528650332,-450.0,0.00019998,2]
[360058536,1746528650342,-500.0,0.00019998,2]
[360058537,1746528650351,-201.82320863,0.00019998,2]
[360058538,1746528650360,-150.0,0.00019998,2]
[360058539,1746528650369,-450.0,0.00019998,2]
[360058540,1746528650378,-350.22197473,0.00019998,2]
[360058541,1746528650388,-450.0,0.00019998,2]
[360058542,1746528650398,-450.0,0.00019998,2]
[360058543,1746528650407,-450.0,0.00019998,2]
[360058544,1746528650416,-450.0,0.00019998,2]
[360058545,1746528650426,-450.0,0.00019998,2]
[360058546,1746528650435,-450.0,0.00019998,2]
[360058547,1746528650444,-450.0,0.00019998,2]
[360058548,1746528650453,-135.8123296,0.00019998,2]
[360058549,1746528650466,-314.1876704,0.00019998,2]
[360058550,1746528650475,-450.0,0.00019998,2]
[360058551,1746528650484,-450.0,0.00019998,2]
[360058552,1746528650494,-450.0,0.00019998,2]
[360058553,1746528650505,-450.0,0.00019998,2]
[360058554,1746528650515,-450.0,0.00019998,2]
[360058555,1746528650525,-450.0,0.00019998,2]
[360058556,1746528650534,-450.0,0.00019998,2]
[360058557,1746528650543,-450.0,0.00019998,2]
[360058558,1746528650553,-450.0,0.00019998,2]
[360058559,1746528650562,-450.0,0.00019998,2]
[360058560,1746528650571,-450.0,0.00019998,2]
[360058561,1746528650581,-450.0,0.00019998,2]
[360058562,1746528650593,-1000.0,0.00019998,2]
[360058563,1746528650602,-450.0,0.00019998,2]
[360058564,1746528650611,-273.53348673,0.00019998,2]
[360058565,1746528650623,-176.46651327,0.00019998,2]
[360058566,1746528650632,-134.4187261,0.00019998,2]
[360058567,1746528650643,-321.194774,0.00019998,2]
[360058568,1746528650652,-450.0,0.00019998,2]
[360058569,1746528650661,-450.0,0.00019998,2]
[360058570,1746528650670,-450.0,0.00019998,2]
[360058571,1746528650679,-450.0,0.00019998,2]
[360058572,1746528650688,-450.0,0.00019998,2]
[360058573,1746528650698,-450.0,0.00019998,2]
[360058574,1746528650708,-72.01192498,0.00019998,2]
[360058575,1746528650719,-377.98807502,0.00019998,2]
[360058576,1746528650728,-450.0,0.00019998,2]
[360058577,1746528650738,-69.60192496,0.00019998,2]
[360058578,1746528727549,444.93,0.00018949,2]
[360058579,1746528771465,250.0,0.00018877,2]
[360058580,1746528831582,159.98,0.00018857,2]
[360058581,1746528832500,500.0,0.00018904,2]
[360058582,1746528832834,500.0,0.00018904,2]
[360058583,1746528833469,500.0,0.00018904,2]
[360058584,1746528833804,500.0,0.00018904,2]
[360058585,1746528834243,500.0,0.00018904,2]
[360058586,1746528957599,150.0,0.00018857,2]
[360058587,1746529028322,10137.410592,7.945e-05,2]
[360058588,1746529034430,1008.48238232,0.00028,30]
[360058589,1746529043883,200.0,0.00018857,2]
[360058590,1746529140452,1253.993599,0.00019,2]
[360058591,1746529295605,156.14,0.00018829,2]
[360058592,1746529352603,200.0,0.0003,120]
[360058593,1746529364309,200.0,0.0001883,2]
[360058594,1746529368546,240.0,0.00028,120]
[360058595,1746529389765,555.88,0.00016912,2]
[360058596,1746529390185,555.88,0.00019176,2]
[360058597,1746529401147,152.0,0.0003,30]
[360058598,1746529489792,500.0,0.00018904,2]
[360058599,1746529490116,500.0,0.00018904,2]
[360058600,1746529490445,500.0,0.00018904,2]
[360058601,1746529490797,500.0,0.00018904,2]
[360058602,1746529491092,500.0,0.00018904,2]
[360058604,1746529507551,200.0,0.00019,2]
[360058605,1746529600637,69721.6,0.0003,30]
[360058607,1746529807332,250.0,0.00018812,2]
[360058608,1746529815976,1000.0,0.0001881,2]
[360058609,1746529823293,4582.1,0.00019,2]
[360058610,1746529823313,5330.88868573,0.00019,2]
[360058614,1746529832124,-207.4,0.00019694,2]
[360058615,1746529832134,-380.69089412,0.00019694,2]
[360058616,1746529832229,-287.96096345,0.00019694,2]
[360058617,1746529832239,-151.0,0.00019694,2]
[360058618,1746529832248,-175.22408535,0.00019694,2]
[360058619,1746529832258,-200.0,0.000197,2]
[360058620,1746529832268,-1200.0,0.00019704,2]
[360058621,1746529832278,-151.0,0.00019705,2]
[360058622,1746529832287,-300.0,0.00019705,2]
[360058623,1746529832296,-200.0,0.00019705,2]
[360058624,1746529832307,-1152.1359,0.00019706,2]
[360058625,1746529832317,-2302.54670446,0.00019706,2]
[360058626,1746529832328,-2273.39204358,0.00019706,2]
[360058657,1746529838352,-40307.7567456,0.00019706,2]
[360058713,1746529840286,-17141.7858638,0.00019706,2]
[360058714,1746529840296,-4527.05895793,0.00019723,2]
[360058715,1746529840305,-1000.0,0.00019733,2]
[360058716,1746529840315,-2500.0,0.00019733,2]
[360058717,1746529840324,-1000.0,0.00019742,2]
[360058718,1746529840334,-4527.0589579,0.00019743,2]
[360058719,1746529840344,-4527.0589579,0.00019762,2]
[360058720,1746529840353,-28569.1175,0.00019765,2]
[360058721,1746529840363,-500.0,0.00019773,2]
[360058722,1746529840372,-500.0,0.00019773,2]
[360058723,1746529840382,-582.42522966,0.00019773,2]
[360058724,1746529840392,-4527.0589579,0.00019782,2]
[360058725,1746529840402,-310.27804029,0.00019784,2]
[360058726,1746529840411,-164.53631357,0.00019785,2]
[360058727,1746529840421,-16311.8185059,0.00019785,2]
[360058728,1746529840430,-225.0,0.0001979,2]
[360058729,1746529840440,-507.4827,0.0001979,2]
[360058730,1746529840450,-310.2780402,0.00019797,2]
[360058731,1746529840460,-16311.81850587,0.00019798,2]
[360058732,1746529840469,-1477.9643,0.00019799,2]
[360058733,1746529840478,-168.28393802,0.00019799,2]
[360058734,1746529840488,-4527.0589579,0.00019802,2]
[360058735,1746529840498,-582.42522966,0.00019805,2]
[360058736,1746529840508,-310.2780402,0.0001981,2]
[360058737,1746529840517,-16311.81850587,0.00019811,2]
[360058738,1746529840527,-4527.0589579,0.00019821,2]
[360058739,1746529840537,-310.2780402,0.00019823,2]
[360058740,1746529840546,-16311.81850587,0.00019823,2]
[360058741,1746529840556,-230.17848616,0.00019833,2]
[360058742,1746529840566,-310.2780402,0.00019836,2]
[360058743,1746529840575,-16311.81850587,0.00019836,2]
[360058744,1746529840584,-582.42522966,0.00019837,2]
[360058745,1746529840594,-1666.58,0.00019839,2]
[360058746,1746529840603,-4527.0589579,0.00019841,2]
[360058747,1746529840612,-381.03171492,0.00019848,2]
[360058748,1746529840622,-482.82657551,0.00019848,2]
[360058749,1746529840631,-450.0,0.00019848,2]
[360058750,1746529840641,-538.42799459,0.00019848,2]
[360058751,1746529840650,-450.0,0.00019848,2]
[360058752,1746529840660,-450.0,0.00019848,2]
[360058753,1746529840669,-450.0,0.00019848,2]
[360058754,1746529840679,-450.0,0.00019848,2]
[360058755,1746529840688,-544.71755129,0.00019848,2]
[360058756,1746529840698,-450.0,0.00019848,2]
[360058757,1746529840707,-450.0,0.00019848,2]
[360058758,1746529840717,-450.0,0.00019848,2]
[360058759,1746529840726,-450.0,0.00019848,2]
[360058760,1746529840736,-450.0,0.00019848,2]
[360058761,1746529840745,-450.0,0.00019848,2]
[360058762,1746529840755,-450.0,0.00019848,2]
[360058763,1746529840764,-450.0,0.00019848,2]
[360058764,1746529840773,-450.0,0.00019848,2]
[360058765,1746529840782,-553.68639631,0.00019848,2]
[360058766,1746529840791,-450.0,0.00019848,2]
[360058767,1746529840802,-450.0,0.00019848,2]
[360058768,1746529840812,-450.0,0.00019848,2]
[360058769,1746529840821,-450.0,0.00019848,2]
[360058770,1746529840830,-450.0,0.00019848,2]
[360058771,1746529840839,-450.0,0.00019848,2]
[360058772,1746529840848,-501.357842,0.00019848,2]
[360058773,1746529840857,-450.0,0.00019848,2]
[360058774,1746529840867,-450.0,0.00019848,2]
[360058775,1746529840880,-293.352403,0.00019848,2]
[360058776,1746529840889,-345.335055,0.00019848,2]
[360058777,1746529840899,-310.2780402,0.00019848,2]
[360058778,1746529840908,-16311.81850587,0.00019849,2]
[360058779,1746529840919,-450.0,0.00019854,2]
[360058780,1746529840928,-450.0,0.00019854,2]
[360058781,1746529840937,-450.0,0.00019854,2]
[360058782,1746529840947,-450.0,0.00019854,2]
[360058783,1746529840956,-450.0,0.00019854,2]
[360058784,1746529840966,-450.0,0.00019854,2]
[360058785,1746529840976,-473.56721319,0.00019854,2]
[360058786,1746529840987,-450.0,0.00019854,2]
[360058787,1746529840999,-450.0,0.00019854,2]
[360058788,1746529841013,-570.86840338,0.00019854,2]
[360058789,1746529841027,-450.0,0.00019854,2]
[360058790,1746529841039,-450.0,0.00019854,2]
[360058791,1746529841049,-450.0,0.00019854,2]
[360058792,1746529841059,-450.0,0.00019854,2]
[360058793,1746529841071,-500.0,0.00019854,2]
[360058794,1746529841083,-450.0,0.00019854,2]
[360058795,1746529841095,-450.0,0.00019854,2]
[360058796,1746529841106,-450.0,0.00019854,2]
[360058797,1746529841118,-450.0,0.00019854,2]
[360058798,1746529841131,-450.0,0.00019854,2]
[360058799,1746529841143,-450.0,0.00019854,2]
[360058800,1746529841154,-450.0,0.00019854,2]
[360058801,1746529841165,-450.0,0.00019854,2]
[360058802,1746529841175,-450.0,0.00019854,2]
[360058803,1746529841186,-450.0,0.00019854,2]
[360058804,1746529841197,-450.0,0.00019854,2]
[360058805,1746529841209,-450.0,0.00019854,2]
[360058806,1746529841221,-450.0,0.00019854,2]
[360058807,1746529841232,-450.0,0.00019854,2]
[360058808,1746529841244,-450.0,0.00019854,2]
[360058809,1746529841256,-450.0,0.00019854,2]
[360058810,1746529841268,-450.0,0.00019854,2]
[360058811,1746529841280,-450.0,0.00019854,2]
[360058812,1746529841292,-450.0,0.00019854,2]
[360058813,1746529841305,-450.0,0.00019854,2]
[360058814,1746529841317,-450.0,0.00019854,2]
[360058815,1746529841329,-450.0,0.00019854,2]
[360058816,1746529841340,-450.0,0.00019854,2]
[360058817,1746529841354,-450.0,0.00019854,2]
[360058818,1746529841366,-550.63123546,0.00019854,2]
[360058819,1746529841378,-450.0,0.00019854,2]
[360058820,1746529841390,-450.0,0.00019854,2]
[360058821,1746529841401,-450.0,0.00019854,2]
[360058822,1746529841412,-450.0,0.00019854,2]
[360058823,1746529841424,-450.0,0.00019854,2]
[360058824,1746529841435,-450.0,0.00019854,2]
[360058825,1746529841447,-450.0,0.00019854,2]
[360058826,1746529841460,-450.0,0.00019854,2]
[360058827,1746529841472,-450.0,0.00019854,2]
[360058828,1746529841484,-2545.69,0.00019854,2]
[360058829,1746529841496,-450.0,0.00019854,2]
[360058830,1746529841508,-150.0,0.00019858,2]
[360058831,1746529841518,-150.0,0.00019859,2]
[360058832,1746529841529,-4527.0589579,0.00019861,2]
[360058833,1746529841540,-450.0,0.00019861,2]
[360058834,1746529841550,-450.0,0.00019861,2]
[360058835,1746529841563,-450.0,0.00019861,2]
[360058836,1746529841576,-450.0,0.00019861,2]
[360058837,1746529841586,-450.0,0.00019861,2]
[360058838,1746529841596,-450.0,0.00019861,2]
[360058839,1746529841606,-450.0,0.00019861,2]
[360058840,1746529841616,-450.0,0.00019861,2]
[360058841,1746529841627,-450.0,0.00019861,2]
[360058842,1746529841639,-450.0,0.00019861,2]
[360058843,1746529841650,-450.0,0.00019861,2]
[360058844,1746529841663,-310.2780402,0.00019861,2]
[360058845,1746529841674,-16311.81850587,0.00019862,2]
[360058846,1746529841685,-582.42522966,0.00019868,2]
[360058847,1746529841695,-500.0,0.00019873,2]
[360058848,1746529841705,-500.0,0.00019873,2]
[360058849,1746529841716,-500.79974949,0.00019873,2]
[360058850,1746529841727,-310.2780402,0.00019874,2]
[360058851,1746529841738,-16311.81850587,0.00019874,2]
[360058852,1746529841749,-500.0,0.00019877,2]
[360058853,1746529841759,-555.20112089,0.00019877,2]
[360058854,1746529841770,-472.89598631,0.00019877,2]
[360058855,1746529841781,-470.0,0.00019877,2]
[360058856,1746529841794,-563.05509097,0.00019877,2]
[360058857,1746529841805,-231.4127036,0.00019877,2]
[360058858,1746529841816,-562.30898106,0.00019877,2]
[360058859,1746529841827,-251.87091155,0.00019877,2]
[360058860,1746529841838,-348.63567882,0.00019877,2]
[360058861,1746529841849,-4527.0589579,0.0001988,2]
[360058862,1746529841860,-1000.0,0.00019883,2]
[360058863,1746529841874,-227.45290425,0.00019883,2]
[360058864,1746529841885,-180.85404785,0.00019883,2]
[360058865,1746529841896,-500.0,0.00019883,2]
[360058866,1746529841907,-500.0,0.00019883,2]
[360058867,1746529841919,-500.0,0.00019883,2]
[360058868,1746529841930,-500.0,0.00019883,2]
[360058869,1746529841943,-500.0,0.00019883,2]
[360058870,1746529841953,-259.30693834,0.00019883,2]
[360058871,1746529841965,-491.66404043,0.00019884,2]
[360058872,1746529841976,-361.40874594,0.00019884,2]
[360058873,1746529841987,-227.9320649,0.00019884,2]
[360058874,1746529841999,-450.0,0.00019884,2]
[360058875,1746529842010,-450.0,0.00019884,2]
[360058876,1746529842021,-450.0,0.00019884,2]
[360058877,1746529842032,-551.00814899,0.00019884,2]
[360058878,1746529842042,-450.0,0.00019884,2]
[360058879,1746529842053,-450.9972277,0.00019884,2]
[360058880,1746529842063,-450.0,0.00019884,2]
[360058881,1746529842075,-450.0,0.00019884,2]
[360058882,1746529842086,-450.46779436,0.00019884,2]
[360058883,1746529842097,-250.0,0.00019884,2]
[360058884,1746529842107,-450.0,0.00019884,2]
[360058885,1746529842118,-450.0,0.00019884,2]
[360058886,1746529842129,-450.0,0.00019884,2]
[360058887,1746529842139,-450.0,0.00019884,2]
[360058888,1746529842149,-450.0,0.00019884,2]
[360058889,1746529842160,-484.48851926,0.00019884,2]
[360058890,1746529842170,-450.0,0.00019884,2]
[360058891,1746529842181,-450.0,0.00019884,2]
[360058892,1746529842192,-450.0,0.00019884,2]
[360058893,1746529842203,-450.0,0.00019884,2]
[360058894,1746529842214,-475.34659839,0.00019884,2]
[360058895,1746529842225,-450.0,0.00019884,2]
[360058896,1746529842236,-450.0,0.00019884,2]
[360058897,1746529842247,-450.0,0.00019884,2]
[360058898,1746529842258,-450.0,0.00019884,2]
[360058899,1746529842269,-562.84266766,0.00019884,2]
[360058900,1746529842280,-450.0,0.00019884,2]
[360058901,1746529842291,-450.0,0.00019884,2]
[360058902,1746529842301,-450.0,0.00019884,2]
[360058903,1746529842312,-477.19107491,0.00019884,2]
[360058904,1746529842323,-450.0,0.00019884,2]
[360058905,1746529842334,-450.0,0.00019884,2]
[360058906,1746529842344,-495.40055347,0.00019884,2]
[360058907,1746529842355,-450.0,0.00019884,2]
[360058908,1746529842367,-450.0,0.00019884,2]
[360058909,1746529842378,-512.90204399,0.00019884,2]
[360058910,1746529842389,-514.16,0.00019884,2]
[360058911,1746529842400,-450.0,0.00019884,2]
[360058912,1746529842412,-450.0,0.00019884,2]
[360058913,1746529842423,-459.30736511,0.00019884,2]
[360058914,1746529842434,-496.75958284,0.00019884,2]
[360058915,1746529842445,-450.0,0.00019884,2]
[360058916,1746529842455,-450.0,0.00019884,2]
[360058917,1746529842466,-466.34124805,0.00019884,2]
[360058918,1746529842476,-450.0,0.00019884,2]
[360058919,1746529842487,-450.0,0.00019884,2]
[360058920,1746529842498,-450.0,0.00019884,2]
[360058921,1746529842508,-450.0,0.00019884,2]
[360058922,1746529842519,-450.0,0.00019884,2]
[360058923,1746529842530,-450.0,0.00019884,2]
[360058924,1746529842542,-514.46973085,0.00019884,2]
[360058925,1746529842552,-450.0,0.00019884,2]
[360058926,1746529842563,-450.0,0.00019884,2]
[360058927,1746529842574,-450.0,0.00019884,2]
[360058928,1746529842586,-450.0,0.00019884,2]
[360058929,1746529842598,-384.76460689,0.00019884,2]
[360058930,1746529842609,-450.0,0.00019884,2]
[360058931,1746529842620,-450.0,0.00019884,2]
[360058932,1746529842630,-450.0,0.00019884,2]
[360058933,1746529842641,-450.0,0.00019884,2]
[360058934,1746529842652,-450.0,0.00019884,2]
[360058936,1746529842855,-450.0,0.00019884,2]
[360058937,1746529842868,-450.0,0.00019884,2]
[360058938,1746529842882,-450.0,0.00019884,2]
[360058939,1746529842892,-450.0,0.00019884,2]
[360058940,1746529842901,-507.7425488,0.00019884,2]
[360058941,1746529842910,-461.06773095,0.00019884,2]
[360058942,1746529842921,-479.04839813,0.00019884,2]
[360058943,1746529842931,-450.0,0.00019884,2]
[360058944,1746529842940,-450.0,0.00019884,2]
[360058945,1746529842950,-450.0,0.00019884,2]
[360058946,1746529842959,-450.0,0.00019884,2]
[360058947,1746529842969,-450.0,0.00019884,2]
[360058948,1746529842978,-517.94623228,0.00019884,2]
[360058949,1746529842988,-450.0,0.00019884,2]
[360058950,1746529842997,-450.0,0.00019884,2]
[360058951,1746529843007,-450.0,0.00019884,2]
[360058952,1746529843015,-450.0,0.00019884,2]
[360058954,1746529843025,-450.0,0.00019884,2]
[360058956,1746529843034,-450.0,0.00019884,2]
[360058958,1746529843043,-450.0,0.00019884,2]
[360058960,1746529843052,-540.57507176,0.00019884,2]
[360058962,1746529843061,-450.0,0.00019884,2]
[360058964,1746529843070,-450.0,0.00019884,2]
[360058966,1746529843079,-450.0,0.00019884,2]
[360058967,1746529843088,-450.0,0.00019884,2]
[360058968,1746529843098,-450.0,0.00019884,2]
[360058969,1746529843107,-450.0,0.00019884,2]
[360058970,1746529843117,-450.0,0.00019884,2]
[360058971,1746529843127,-454.43841773,0.00019884,2]
[360058972,1746529843137,-450.0,0.00019884,2]
[360058973,1746529843147,-450.0,0.00019884,2]
[360058974,1746529843156,-450.0,0.00019884,2]
[360058975,1746529843165,-485.11442644,0.00019884,2]
[360058976,1746529843174,-450.0,0.00019884,2]
[360058977,1746529843183,-490.0,0.00019884,2]
[360058978,1746529843192,-450.0,0.00019884,2]
[360058979,1746529843202,-481.42725444,0.00019884,2]
[360058980,1746529843211,-450.0,0.00019884,2]
[360058981,1746529843220,-481.8573953,0.00019884,2]
[360058982,1746529843230,-450.0,0.00019884,2]
[360058983,1746529843239,-450.0,0.00019884,2]
[360058984,1746529843248,-324.80063688,0.00019884,2]
[360058985,1746529843257,-450.0,0.00019884,2]
[360058986,1746529843267,-450.0,0.00019884,2]
[360058987,1746529843277,-487.38164639,0.00019884,2]
[360058988,1746529843286,-450.0,0.00019884,2]
[360058989,1746529843296,-450.0,0.00019884,2]
[360058990,1746529843305,-278.7453096,0.00019884,2]
[360058991,1746529843314,-450.0,0.00019884,2]
[360058992,1746529843323,-450.0,0.00019884,2]
[360058993,1746529843334,-450.0,0.00019884,2]
[360058994,1746529843343,-450.0,0.00019884,2]
[360058995,1746529843352,-450.0,0.00019884,2]
[360058996,1746529843362,-450.0,0.00019884,2]
[360058997,1746529843371,-450.0,0.00019884,2]
[360058998,1746529843380,-550.19218352,0.00019884,2]
[360058999,1746529843390,-524.1911236,0.00019884,2]
[360059000,1746529843399,-450.0,0.00019884,2]
[360059001,1746529843408,-450.0,0.00019884,2]
[360059002,1746529843419,-450.0,0.00019884,2]
[360059003,1746529843429,-450.0,0.00019884,2]
[360059004,1746529843438,-450.0,0.00019884,2]
[360059005,1746529843448,-1000.0,0.00019884,2]
[360059006,1746529843457,-450.0,0.00019884,2]
[360059007,1746529843466,-450.0,0.00019884,2]
[360059008,1746529843476,-534.88429947,0.00019884,2]
[360059009,1746529843486,-475.16314777,0.00019884,2]
[360059010,1746529843495,-450.0,0.00019884,2]
[360059011,1746529843505,-459.76474974,0.00019884,2]
[360059012,1746529843514,-539.12189807,0.00019884,2]
[360059013,1746529843524,-450.0,0.00019884,2]
[360059014,1746529843534,-460.05470542,0.00019884,2]
[360059015,1746529843543,-450.0,0.00019884,2]
[360059016,1746529843552,-450.0,0.00019884,2]
[360059017,1746529843561,-450.0,0.00019884,2]
[360059018,1746529843571,-450.0,0.00019884,2]
[360059019,1746529843580,-450.0,0.00019884,2]
[360059020,1746529843589,-464.76620649,0.00019884,2]
[360059021,1746529843598,-450.0,0.00019884,2]
[360059022,1746529843607,-450.0,0.00019884,2]
[360059023,1746529843616,-485.26824845,0.00019884,2]
[360059024,1746529843625,-450.0,0.00019884,2]
[360059026,1746529843634,-450.0,0.00019884,2]
[360059027,1746529843643,-450.0,0.00019884,2]
[360059029,1746529843652,-478.36009512,0.00019884,2]
[360059032,1746529843661,-498.97247815,0.00019884,2]
[360059033,1746529843670,-530.33062322,0.00019884,2]
[360059034,1746529843680,-450.0,0.00019884,2]
[360059035,1746529843689,-540.91595768,0.00019884,2]
[360059036,1746529843698,-450.0,0.00019884,2]
[360059037,1746529843707,-450.0,0.00019884,2]
[360059038,1746529843716,-450.0,0.00019884,2]
[360059039,1746529843725,-450.0,0.00019884,2]
[360059040,1746529843734,-450.0,0.00019884,2]
[360059041,1746529843743,-450.0,0.00019884,2]
[360059042,1746529843752,-450.0,0.00019884,2]
[360059043,1746529843761,-571.17482881,0.00019884,2]
[360059044,1746529843770,-450.0,0.00019884,2]
[360059045,1746529843780,-242.47429849,0.00019884,2]
[360059046,1746529843789,-450.0,0.00019884,2]
[360059047,1746529843798,-470.72173078,0.00019884,2]
[360059048,1746529843807,-450.0,0.00019884,2]
[360059049,1746529843816,-456.58586258,0.00019884,2]
[360059050,1746529843825,-459.30573162,0.00019884,2]
[360059051,1746529843834,-454.41830708,0.00019884,2]
[360059052,1746529843843,-450.0,0.00019884,2]
[360059053,1746529843852,-450.0,0.00019884,2]
[360059054,1746529843861,-450.0,0.00019884,2]
[360059055,1746529843873,-450.0,0.00019884,2]
[360059056,1746529843882,-410.74576416,0.00019884,2]
[360059057,1746529843894,-450.0,0.00019884,2]
[360059058,1746529843903,-450.0,0.00019884,2]
[360059059,1746529843913,-450.0,0.00019884,2]
[360059060,1746529843922,-450.0,0.00019884,2]
[360059061,1746529843931,-450.0,0.00019884,2]
[360059062,1746529843941,-466.87664723,0.00019884,2]
[360059063,1746529843950,-450.0,0.00019884,2]
[360059064,1746529843958,-454.44093338,0.00019884,2]
[360059065,1746529843967,-519.22973061,0.00019884,2]
[360059066,1746529843976,-463.00096957,0.00019884,2]
[360059067,1746529843985,-565.09013041,0.00019884,2]
[360059068,1746529843994,-450.0,0.00019884,2]
[360059069,1746529844003,-450.0,0.00019884,2]
[360059070,1746529844012,-450.0,0.00019884,2]
[360059071,1746529844022,-554.90037268,0.00019884,2]
[360059072,1746529844031,-472.16891712,0.00019884,2]
[360059073,1746529844041,-450.0,0.00019884,2]
[360059074,1746529844050,-460.11948194,0.00019884,2]
[360059075,1746529844059,-450.0,0.00019884,2]
[360059076,1746529844068,-475.54716438,0.00019884,2]
[360059077,1746529844077,-450.0,0.00019884,2]
[360059078,1746529844087,-553.32897821,0.00019884,2]
[360059079,1746529844096,-450.0,0.00019884,2]
[360059080,1746529844105,-450.0,0.00019884,2]
[360059081,1746529844114,-468.24412755,0.00019884,2]
[360059082,1746529844123,-450.0,0.00019884,2]
[360059083,1746529844133,-366.31219986,0.00019884,2]
[360059084,1746529844143,-450.0,0.00019884,2]
[360059085,1746529844152,-450.0,0.00019884,2]
[360059086,1746529844161,-461.22329815,0.00019884,2]
[360059087,1746529844170,-450.0,0.00019884,2]
[360059088,1746529844180,-459.48467433,0.00019884,2]
[360059089,1746529844190,-450.0,0.00019884,2]
[360059090,1746529844199,-568.14759759,0.00019884,2]
[360059091,1746529844209,-450.0,0.00019884,2]
[360059092,1746529844218,-514.20490005,0.00019884,2]
[360059093,1746529844227,-450.0,0.00019884,2]